Cogmind - Beta 13 @@@ ROGUE MODE // 2024.05.09 @ 23:59:57 Player: Khoroshiy Result: Destroyed by S-27 Virus with Autogun Performance ------------- Evolutions (3) 1500 Regions Visited (9) 1800 Robots Destroyed (26) 130 Value Destroyed (504) 504 Prototype IDs (3) 60 Alien Tech Used (0) 0 Bonus (311) 311 TOTAL SCORE: 4305 Bonus ------- Follower Combat Kills 28 Aligned with FarCom 300 Friendly Fire -17 Cogmind --------- Core Integrity 0/700 Matter 290/300 Energy 46/100 System Corruption 0% Temperature Cool (0) Movement Core (50) Location -7/Lower Caves Parts ------- > --- POWER (1) -------- (None) > --- PROPULSION (4) --- (None) > --- UTILITY (6) ------ (None) > --- WEAPON (2) ------- (None) > --- INVENTORY (5) ---- Advanced ECM Suite Proton Bomb Trap Proton Bomb Trap Peak State ------------ > --- POWER ------------ Heavy Deuterium Engine > --- PROPULSION ------- (None) > --- UTILITY ---------- Advanced Terrain Scan Processor System Shield > --- WEAPON ----------- Guided Plasma Cannon > --- INVENTORY -------- Advanced ECM Suite Improved Shield Generator EM Pulse Gun Proton Bomb Trap Proton Bomb Trap [Rating: 21] Favorites ----------- Power Ion Engine Engine Ion Engine Propulsion Light Treads Treads Light Treads Utility Small Storage Unit Device Improved Shield Generator Storage Small Storage Unit Processor Terrain Scan Processor Hackware System Shield Weapon Light Assault Rifle Energy Gun EM Pulse Gun Energy Cannon Guided Plasma Cannon Ballistic Gun Light Assault Rifle Launcher Heavy Missile Launcher Build | -11 -10 -10 -9 -9 -9 -8 -8 -7 -7 ------- Run | Yrd Mat Min Mat Min Exi Min Mat Fac Low Slots Evolved 6 | . . . 2 . . . 2 2 . Power . | . . . . . . . . . . Propulsion 2 | . . . 2 . . . . . . Utility 4 | . . . . . . . 2 2 . Weapon . | . . . . . . . . . . Parts Attached 24 | 6 1 2 3 3 2 1 . 4 2 Power 5 | 1 . 1 . 1 . . . 2 . Engine 5 | 1 . 1 . 1 . . . 2 . Core . | . . . . . . . . . . Reactor . | . . . . . . . . . . Propulsion 5 | 2 . . 2 . . . . 1 . Treads 5 | 2 . . 2 . . . . 1 . Leg . | . . . . . . . . . . Wheel . | . . . . . . . . . . Hover . | . . . . . . . . . . Flight . | . . . . . . . . . . Utility 6 | 1 . . 1 . 1 1 . 1 1 Device 2 | . . . . . 1 . . . 1 Storage 1 | 1 . . . . . . . . . Processor 2 | . . . 1 . . . . 1 . Hackware 1 | . . . . . . 1 . . . Protection . | . . . . . . . . . . Artifact . | . . . . . . . . . . Weapon 8 | 2 1 1 . 2 1 . . . 1 Energy Gun 2 | 1 . . . . . . . . 1 Energy Cannon 1 | . . . . . 1 . . . . Ballistic Gun 4 | 1 1 1 . 1 . . . . . Ballistic Cannon . | . . . . . . . . . . Launcher 1 | . . . . 1 . . . . . Special Weapon . | . . . . . . . . . . Impact Weapon . | . . . . . . . . . . Slashing Weapon . | . . . . . . . . . . Piercing Weapon . | . . . . . . . . . . Special Melee Weapon . | . . . . . . . . . . Unidentified Prototypes 3 | . . . . . 2 . . 1 . Parts Lost 15 | . . 1 4 1 . 1 2 3 3 Power 3 | . . 1 1 . . . . 1 . Propulsion 5 | . . . 2 1 . . 1 1 . Utility 3 | . . . . . . . 1 . 2 Weapon 4 | . . . 1 . . 1 . 1 1 Highest Loss Streak 4 | . . 1 4 1 . 1 2 3 3 To Critical Strikes . | . . . . . . . . . . Average Slot Usage (%) 56 | . 85 84 68 69 59 50 43 23 6 Engine 9 | . 14 13 7 11 11 11 9 6 . Treads 13 | . 28 28 20 14 11 11 8 . . Storage 8 | . 14 14 11 11 11 11 8 . . Processor 4 | . . . 10 11 4 . . . . Hackware 1 | . . . . . . . 9 7 5 Energy Cannon 3 | . . . . . 5 11 9 6 . Ballistic Gun 9 | . 24 28 19 11 5 . . . . Launcher 4 | . . . . 10 11 5 . . . Naked Turns 30 | . . . . . . . . . 30 Heaviest Build 27 | 13 13 12 10 18 27 27 20 15 4 Greatest Support 40 | 40 40 40 40 40 20 20 20 20 3 Greatest Overweight (x) 4 | . . . 1 . 1 1 4 4 1 Average Overweight (x) . | . . . . . . . . 3 . Largest Inventory Capacity 8 | 8 8 8 8 8 8 8 8 5 5 Average Capacity 7 | 7 8 8 8 8 8 8 7 5 5 Most Carried 8 | 2 3 8 8 8 8 8 8 5 5 Average Carried 6 | 1 2 7 8 7 8 8 7 5 4 Final Capacity 8 | 8 8 8 8 8 8 8 5 5 5 Final Carried 8 | 2 3 8 8 8 8 8 5 5 3 Class Distribution -------------------- 100% | Mutant Dominant Class ---------------- Mutant | -10/Materials Mutant | -10/Mines Mutant | -9/Materials Mutant | -9/Mines Mutant | -9/Exiles Mutant | -8/Mines Mutant | -8/Materials Mutant | -7/Factory Mutant | -7/Lower Caves Resources | -11 -10 -10 -9 -9 -9 -8 -8 -7 -7 ----------- Run | Yrd Mat Min Mat Min Exi Min Mat Fac Low Matter Collected 488 | 230 46 41 50 71 . 20 . 30 . Remotely . | . . . . . . . . . . Salvage Created 654 | . 60 43 327 46 . 92 . 86 . Parts 49 | . 7 4 24 4 . 9 . 1 . Haulers Intercepted . | . . . . . . . . . . Recyclers Shooed 2 | . . . . 2 . . . . . Parts Field Recycled . | . . . . . . . . . . Retrieved Matter . | . . . . . . . . . . Parts Self-Destructed . | . . . . . . . . . . Prevented . | . . . . . . . . . . Kills | -11 -10 -10 -9 -9 -9 -8 -8 -7 -7 ------- Run | Yrd Mat Min Mat Min Exi Min Mat Fac Low Combat Hostiles Destroyed 26 | . 3 3 9 3 . 6 . 2 . Guns 18 | . 3 3 9 3 . . . . . Cannons 7 | . . . . . . 6 . 1 . Classes Destroyed 5 | . 1 . 3 . . . . 1 . Swarmer 19 | . 3 3 4 3 . 6 . . . Grunt 2 | . . . 2 . . . . . . Brawler 1 | . . . 1 . . . . . . Sentry 2 | . . . 2 . . . . . . Programmer 2 | . . . . . . . . 2 . Best Kill Streak 6 | . 3 3 6 2 . 4 . 1 . Combat Bots Only 6 | . 3 3 6 2 . 4 . 1 . Max Kills in Single Turn 2 | . 1 2 1 1 . 1 . 1 . Gunslinging 1 | . . 1 . . . . . . . Exploded . | . . . . . . . . . . Melee . | . . . . . . . . . . Uniques/NPCs Destroyed . | . . . . . . . . . . Combat | -11 -10 -10 -9 -9 -9 -8 -8 -7 -7 -------- Run | Yrd Mat Min Mat Min Exi Min Mat Fac Low Hostile Shots Fired 383 | . 28 37 79 35 . 10 14 132 48 Missed 114 | . 8 13 17 8 . 2 3 51 12 Damage Taken 2781 | . 152 195 691 254 . 81 168 695 545 Core 1078 | . 31 25 181 46 . 22 65 268 440 Absorbed by Shields 16 | . . . . . . . . . 16 Core Remaining (%) 75 | 100 . 77 . . . 37 88 . . Volleys Fired 92 | . 9 9 26 32 . 8 . 7 1 Largest 2 | . 2 2 2 2 . 1 . 1 1 Hottest 120 | . 60 40 40 59 . 120 . 120 40 Shots Fired 125 | . 18 18 40 33 . 8 . 7 1 Gun 109 | . 18 18 40 32 . . . . 1 Cannon 15 | . . . . . . 8 . 7 . Launcher 1 | . . . . 1 . . . . . Special . | . . . . . . . . . . Kinetic 104 | . 14 18 40 32 . . . . . Thermal 15 | . . . . . . 8 . 7 . Explosive 1 | . . . . 1 . . . . . Electromagnetic 5 | . 4 . . . . . . . 1 Robot Hit Streak 20 | . 3 5 12 6 . 12 . 19 20 Robot Miss Streak 4 | . 2 4 4 2 . . . . . Penetration Max . | . . . . . . . . . . Secondary Targets 2 | . . 1 1 . . . . . . Max Gunslinging Chain 1 | . . 1 1 . . . . . . Shots Hit Robots 90 | . 11 11 29 23 . 8 . 7 1 Core Hits 43 | . 6 4 20 6 . 6 . 1 . Critical Kills 2 | . . 1 . 1 . . . . . Critical Parts Destroyed . | . . . . . . . . . . Critical Strikes 2 | . . 1 . 1 . . . . . Destroy 2 | . . 1 . 1 . . . . . Melee Attacks . | . . . . . . . . . . Impact . | . . . . . . . . . . Slashing . | . . . . . . . . . . Piercing . | . . . . . . . . . . Sneak Attacks . | . . . . . . . . . . Combat Hostiles . | . . . . . . . . . . Follow-up Attacks . | . . . . . . . . . . Damage Inflicted 1330 | . 108 88 251 263 . 292 7 311 10 Guns 629 | . 108 88 251 172 . . . . 10 Cannons 599 | . . . . . . 288 . 311 . Explosions 74 | . . . . 74 . . . . . Melee . | . . . . . . . . . . Ramming 28 | . . . . 17 . 4 7 . . Kinetic 585 | . 74 88 251 172 . . . . . Thermal 599 | . . . . . . 288 . 311 . Explosive 74 | . . . . 74 . . . . . Electromagnetic 44 | . 34 . . . . . . . 10 Impact . | . . . . . . . . . . Slashing . | . . . . . . . . . . Piercing . | . . . . . . . . . . Highest Corruption . | . . . . . . . . . . Average Corruption . | . . . . . . . . . . Corruption Purged . | . . . . . . . . . . Corruption Blocked . | . . . . . . . . . . Overload Shots . | . . . . . . . . . . Overflow Damage 102 | . . . . . . 50 . 52 . Projectiles 102 | . . . . . . 50 . 52 . Explosions . | . . . . . . . . . . Melee . | . . . . . . . . . . Knockbacks . | . . . . . . . . . . Impact . | . . . . . . . . . . Kinetic . | . . . . . . . . . . Secondary . | . . . . . . . . . . Self-Inflicted Damage 37 | . . . . 37 . . . . . Shots 1 | . . . . 1 . . . . . Rammed 8 | . . . . 5 . 1 2 . . Targets Rammed 8 | . . . . 5 . 1 2 . . Kicked . | . . . . . . . . . . Crushed . | . . . . . . . . . . Highest Temperature 370 | . 40 . 12 . . 370 . 248 . Average Temperature 112 | . 25 . 5 . . 162 . 110 . Received Heat Transfer 399 | . . . 144 . . 6 99 150 . Effects 1 | . . . . . . 1 . . . Damage (minor) 1 | . . . . . . 1 . . . Siege Activations . | . . . . . . . . . . Robots Corrupted . | . . . . . . . . . . Combat Hostiles . | . . . . . . . . . . Parts Fried . | . . . . . . . . . . Impact Corruptions . | . . . . . . . . . . Robots Melted 1 | . . . . . . . . 1 . Combat Hostiles 1 | . . . . . . . . 1 . Parts Melted 3 | . . . . . . 2 . 1 . Heat Transferred 1200 | . . . . . . 640 . 560 . Parts Sabotaged . | . . . . . . . . . . Parts Stolen . | . . . . . . . . . . Parts Stripped . | . . . . . . . . . . Power Chain Reactions . | . . . . . . . . . . Alert | -11 -10 -10 -9 -9 -9 -8 -8 -7 -7 ------- Run | Yrd Mat Min Mat Min Exi Min Mat Fac Low Peak Influence 277 | . 100 99 277 173 . 121 15 30 . Initial 108 | . . 39 . 108 . . . . . Average 54 | . 61 55 109 72 . 85 2 9 . Maximum Alert Level 1 | . . . 1 . . . . . . Low Security (%) 97 | 100 100 100 72 100 . 100 100 100 . Level 1 2 | . . . 27 . . . . . . Level 2 . | . . . . . . . . . . Level 3 . | . . . . . . . . . . Level 4 . | . . . . . . . . . . Level 5 . | . . . . . . . . . . High Security . | . . . . . . . . . . Max Security . | . . . . . . . . . . Squads Dispatched 5 | . . . . 1 . . 2 2 . Investigation 1 | . . . . 1 . . . . . Extermination 2 | . . . . . . . . 2 . Reinforcement 2 | . . . . . . . 2 . . Assault . | . . . . . . . . . . Garrison . | . . . . . . . . . . Intercept . | . . . . . . . . . . Searches Triggered . | . . . . . . . . . . Construction Impeded . | . . . . . . . . . . Haulers Reinforced . | . . . . . . . . . . Active Scanning Responses . | . . . . . . . . . . Cargo Convoy Interrupts . | . . . . . . . . . . Stealth | -11 -10 -10 -9 -9 -9 -8 -8 -7 -7 --------- Run | Yrd Mat Min Mat Min Exi Min Mat Fac Low Distress Signals 4 | . . . 4 . . . . . . Communications Jammed . | . . . . . . . . . . Distress Signals . | . . . . . . . . . . Times Spotted 59 | . 9 3 20 5 . 8 3 4 7 Peak Tracking Total 6 | . 5 3 6 4 . 4 2 2 4 Tactical Retreats 2 | . . . 1 . . . . . 1 Traps | -11 -10 -10 -9 -9 -9 -8 -8 -7 -7 ------- Run | Yrd Mat Min Mat Min Exi Min Mat Fac Low Traps Triggered . | . . . . . . . . . . Indirectly . | . . . . . . . . . . Trap Hack Attempts . | . . . . . . . . . . Triggered . | . . . . . . . . . . Disarmed . | . . . . . . . . . . Reprogrammed . | . . . . . . . . . . Reused . | . . . . . . . . . . Traps Extracted . | . . . . . . . . . . Installed . | . . . . . . . . . . Triggered . | . . . . . . . . . . Most Traps Carried 5 | . . 5 5 5 3 3 3 2 2 Machines | -11 -10 -10 -9 -9 -9 -8 -8 -7 -7 ---------- Run | Yrd Mat Min Mat Min Exi Min Mat Fac Low Machines Disabled . | . . . . . . . . . . Max in Single Turn . | . . . . . . . . . . Machines Repaired . | . . . . . . . . . . Machines Dismantled . | . . . . . . . . . . Machines Sabotaged . | . . . . . . . . . . Overloaded Fab Kills . | . . . . . . . . . . Hacking | -11 -10 -10 -9 -9 -9 -8 -8 -7 -7 --------- Run | Yrd Mat Min Mat Min Exi Min Mat Fac Low Machines Accessed 4 | . . . 2 1 . . . 1 . Terminals 3 | . . . 2 . . . . 1 . Fabricators . | . . . . . . . . . . Repair Stations . | . . . . . . . . . . Recycling Units . | . . . . . . . . . . Scanalyzers . | . . . . . . . . . . Garrison Access . | . . . . . . . . . . Total Hacks 10 | . . . 5 1 . . . 4 . Successful 3 | . . . 1 1 . . . 1 . Failed 7 | . . . 4 . . . . 3 . Catastrophic 1 | . . . . . . . . 1 . Database Lockouts . | . . . . . . . . . . Manual 6 | . . . 2 . 1 . . 3 . Terminals 9 | . . . 5 . . . . 4 . Fabricators . | . . . . . . . . . . Repair Stations . | . . . . . . . . . . Recycling Units . | . . . . . . . . . . Scanalyzers . | . . . . . . . . . . Garrison Access . | . . . . . . . . . . Terminal Hacks 3 | . . . 1 1 . . . 1 . Open Door 1 | . . . . 1 . . . . . Recall Investigation 1 | . . . 1 . . . . . . Registered Components 1 | . . . . . . . . 1 . Fabricator Hacks . | . . . . . . . . . . Repair Station Hacks . | . . . . . . . . . . Recycling Unit Hacks . | . . . . . . . . . . Scanalyzer . | . . . . . . . . . . Garrison Access Hacks . | . . . . . . . . . . Unauthorized Hacks . | . . . . . . . . . . Terminals . | . . . . . . . . . . Fabricators . | . . . . . . . . . . Repair Stations . | . . . . . . . . . . Recycling Units . | . . . . . . . . . . Scanalyzers . | . . . . . . . . . . Garrison Access . | . . . . . . . . . . Data Cores Recovered . | . . . . . . . . . . Used . | . . . . . . . . . . Hacking Detections 3 | . . . 2 . . . . 1 . Full Trace Events . | . . . . . . . . . . Feedback Events . | . . . . . . . . . . Feedback Blocked . | . . . . . . . . . . Robot Schematics Acquired . | . . . . . . . . . . Robots Built . | . . . . . . . . . . Authchips . | . . . . . . . . . . Time . | . . . . . . . . . . Total Robot Build Rating . | . . . . . . . . . . Part Schematics Acquired . | . . . . . . . . . . Parts Built . | . . . . . . . . . . Authchips . | . . . . . . . . . . Time . | . . . . . . . . . . Total Part Build Rating . | . . . . . . . . . . Parts Repaired . | . . . . . . . . . . Time . | . . . . . . . . . . Parts Recycled . | . . . . . . . . . . Recycled Matter . | . . . . . . . . . . Retrieved Matter . | . . . . . . . . . . Retrieved Components . | . . . . . . . . . . Parts Scanalyzed . | . . . . . . . . . . Part Schematics Acquired . | . . . . . . . . . . Parts Damaged . | . . . . . . . . . . Bothacking | -11 -10 -10 -9 -9 -9 -8 -8 -7 -7 ------------ Run | Yrd Mat Min Mat Min Exi Min Mat Fac Low Used RIF Installer . | . . . . . . . . . . Robots Hacked . | . . . . . . . . . . Non-combat . | . . . . . . . . . . Combat . | . . . . . . . . . . Robot Hacks Applied . | . . . . . . . . . . Relay Couplers Released . | . . . . . . . . . . Fabnet Peak Effective % . | . . . . . . . . . . Robots Rewired . | . . . . . . . . . . Allies Hacked . | . . . . . . . . . . Hacks Repelled . | . . . . . . . . . . Allies | -11 -10 -10 -9 -9 -9 -8 -8 -7 -7 -------- Run | Yrd Mat Min Mat Min Exi Min Mat Fac Low Total Allies 4 | . . . . 4 . . . . . Largest Group 4 | . . . . 4 3 2 . . . Highest-Rated Group 71 | . . . . 71 40 24 . . . Highest-Rated Ally 31 | . . . . 31 16 16 . . . Total Orders . | . . . . . . . . . . Ally Attacks 19 | . . . . 10 . 9 . . . Total Damage 155 | . . . . 53 . 102 . . . Kills 4 | . . . . 2 . 2 . . . Allies Corrupted . | . . . . . . . . . . Allies Melted . | . . . . . . . . . . Intel | -11 -10 -10 -9 -9 -9 -8 -8 -7 -7 ------- Run | Yrd Mat Min Mat Min Exi Min Mat Fac Low Robot Analysis Total . | . . . . . . . . . . Derelict Logs Recovered 5 | . . 1 . 3 . . . . 1 Drone Launches . | . . . . . . . . . . Drone Recoveries . | . . . . . . . . . . Exploration | -11 -10 -10 -9 -9 -9 -8 -8 -7 -7 ------------- Run | Yrd Mat Min Mat Min Exi Min Mat Fac Low Turns Passed 4704 | 71 138 690 352 1232 483 449 156 989 144 Spaces Moved 2654 | 40 69 412 167 724 245 222 92 413 270 Core 627 | 3 . . 3 . . . 2 349 270 Treads 2027 | 37 69 412 164 724 245 222 90 64 . Legs . | . . . . . . . . . . Wheels . | . . . . . . . . . . Hover . | . . . . . . . . . . Flight . | . . . . . . . . . . Fastest Speed 50 | 50 160 160 100 160 160 160 160 50 50 Average Speed 166 | 151 160 160 158 160 195 193 161 234 51 Slowest Speed 250 | 160 160 160 160 160 240 240 250 250 100 Overloaded Moves . | . . . . . . . . . . Propulsion Burnouts . | . . . . . . . . . . Robots Hopped . | . . . . . . . . . . Cave-ins Triggered . | . . . . . . . . . . Exploration Rate (%) 40 | 3 28 83 24 95 42 64 16 11 36 Regions Visited 9 Branch Regions 5 Pre-discovered Areas 2 | . . 1 . 1 . . . . . Known Exits Taken 3 | . . . 1 . . 1 1 . . Unknown Exits Taken 6 | 1 1 1 . 1 1 . . 1 . Scrap Searched 4 | . . 1 . 1 . 1 . . 1 Spaces Dug . | . . . . . . . . . . Terrain Destroyed 17 | . . . . 17 . . . . . Melee . | . . . . . . . . . . Projectile . | . . . . . . . . . . AOE 17 | . . . . 17 . . . . . Terrain Rammed . | . . . . . . . . . . Walls Destroyed . | . . . . . . . . . . Machines Disabled . | . . . . . . . . . . Actions | -11 -10 -10 -9 -9 -9 -8 -8 -7 -7 --------- Run | Yrd Mat Min Mat Min Exi Min Mat Fac Low Total 2823 | 47 81 428 220 769 249 231 99 426 273 Wait 33 | . 2 . 25 . . . 6 . . Move 2645 | 39 68 411 166 723 244 221 91 412 270 Hop . | . . . . . . . . . . Pick Up 11 | 2 1 5 . 3 . . . . . Fast Attach 18 | 6 . 1 3 1 2 1 . 4 . Attach 3 | . . . . 1 . . . . 2 Detach . | . . . . . . . . . . Swap 3 | . 1 1 . 1 . . . . . Drop 10 | . . 1 . 3 3 . . 3 . Fire 92 | . 9 9 26 32 . 8 . 7 1 Melee . | . . . . . . . . . . Ram . | . . . . . . . . . . Kick . | . . . . . . . . . . Crush 8 | . . . . 5 . 1 2 . . Escape Stasis . | . . . . . . . . . . Rewire . | . . . . . . . . . . Trap . | . . . . . . . . . . Miscellaneous . | . . . . . . . . . . Route ------- -11/Scrapyard -10/Materials -10/Mines (discovered 2 exits: *Mat x2) -9/Materials (discovered 2 exits: Mat / *Min) -9/Mines (discovered 3 exits: *Mat x2 / *Exi) -9/Exiles -8/Mines -8/Materials (discovered 4 exits: *Fac x2 / Sto x2) -7/Factory -7/Lower Caves History --------- Turn | Location | Event 35 | -11/Scrapyard | Discovered new exit (range 16) 72 | -11/Scrapyard | Entered Materials 161 | -10/Materials | Discovered new exit (range 14) 210 | -10/Materials | Entered Mines 310 | -10/Mines | Build established: Mutant 338 | -10/Mines | Found a hidden stash of uninstalled traps 390 | -10/Mines | Learned location of 2 exits from Materials 420 | -10/Mines | Discovered new exit (range 14) 629 | -10/Mines | Learned location of Storage (-8) 665 | -10/Mines | Discovered new exit (range 7) 900 | -10/Mines | Entered Materials 900 | -9/Materials | Evolved 2 slots: Propulsion x2 901 | -9/Materials | Identified exit to Materials 901 | -9/Materials | Identified exit to Mines 1205 | -9/Materials | Lost 4 parts (1p2n1w) 1252 | -9/Materials | Entered Mines 1258 | -9/Mines | Met a Derelict shopkeep closing up shop 1347 | -9/Mines | Assisted by bots powering up and referring to "LRC-V3" 1448 | -9/Mines | Discovered exit to Materials (range 13) 1688 | -9/Mines | Core integrity fell below 50% 1911 | -9/Mines | Learned 2 Materials zone layouts 2159 | -9/Mines | Discovered exit to Materials (range 15) 2169 | -9/Mines | Received a Mining Laser from a helpful Derelict 2357 | -9/Mines | Received a Rocket Launcher from a helpful Derelict 2383 | -9/Mines | Learned location of Recycling (-8) 2473 | -9/Mines | Deemed a non-threat by the Exiles lab entrance 2474 | -9/Mines | Discovered new exit (range 5) 2484 | -9/Mines | Entered Exiles 2484 | -9/Exiles | Accompanied by 3 allies 2523 | -9/Exiles | Met 8R-AWN 2552 | -9/Exiles | Met EX-HEX 2603 | -9/Exiles | Met EX-BIN 2640 | -9/Exiles | Aligned with FarCom system 2641 | -9/Exiles | Given EX-Vault access code 2678 | -9/Exiles | Opened EX-Vault 2690 | -9/Exiles | Found Prototype Device 2690 | -9/Exiles | Identified Supersonic Drone Bay 2704 | -9/Exiles | Found Prototype Energy Cannon 2704 | -9/Exiles | Identified Gui. Plasma Cannon 2763 | -9/Exiles | Warned to stay clear of 0b10 Research branches 2938 | -9/Exiles | Discovered new exit (range 14) 2967 | -9/Exiles | Left Exiles lab with Gui. Plasma Cannon 2967 | -9/Exiles | Entered Mines 2967 | -8/Mines | Accompanied by 3 allies 3378 | -8/Mines | Discovered exit to Materials (range 7) 3416 | -8/Mines | Entered Materials 3416 | -8/Materials | Evolved 2 slots: Utility x2 3417 | -8/Materials | Identified exit to Factory 3418 | -8/Materials | Identified exit to Storage 3549 | -8/Materials | Discovered exit to Factory (range 10) 3572 | -8/Materials | Entered Factory 3572 | -7/Factory | Evolved 2 slots: Utility x2 4181 | -7/Factory | Discovered new exit (range 9) 4561 | -7/Factory | Entered Lower Caves 4589 | -7/Lower Caves | Lost 3 parts (1p1n1w) 4661 | -7/Lower Caves | Learned Factory emergency access door positions 4662 | -7/Lower Caves | Core integrity fell below 50% 4682 | -7/Lower Caves | Core integrity fell below 20% 4705 | -7/Lower Caves | Destroyed by S-27 Virus with Autogun Last Messages --------------- 9XAE69J4XB: Mic. Nuclear Core VJZIMB01UJ: Com. Wheel 9IUDK3JSA7: Spread Laser Downloaded coordinate data. Acquired Arm. Treads. Ion Engine destroyed. Gui. Plasma Cannon destroyed. Arm. Treads destroyed. LOCATION=UNKNOWN GOAL=ESCAPE Searching scrap... Found Force Booster. Found Imp. Deuterium Engine. Found Trap Extractor. Found 22 Matter. Acquired derelict log, extracted data. Data stored: Factory emergency access points. System Shield destroyed. EM Pulse Gun destroyed. Imp. Shield Generator destroyed. Map ----- +----------------------------------------------------+ | ?????????????????????????????????????????????????? | | ?????????????????????????????????????????????????? | | ?????????????????????????????????????????????????? | | ?????????????????????????????????????????????????? | | ?????????????????????????????????????????????????? | | ?????????????????????????????????????????????????? | | ?????????????????????????????????????????????????? | | ?????????????????????????????????????????????????? | | ?????????????????????????????????????????????????? | | ?????????????????????????????????????????????????? | | ?????????????????????????????????????????????????? | | ?????????????????????????????????????????????????? | | ?????????????????????????????????????????????????? | | ???????????????????????????????? ??????????????? | | ?????????????????????????####??? #?????????????? | | ????????????????????????# #?? #?????????????? | | ????????????????????????# #?# ??????????????? | | ???????????????????????## ## #??????????????? | | ??????????????????????## #???????????????? | | ?????????????????????? #????????????????? | | ??????????????????????? ###??????????????? | | ??????????????????????? #??????????????? | | ???????????????????????# ???????????????? | | ??????????????????????## #?????????????????? | | ??????????????????????# #????????###???????? | | ???????????????????????# @ #???????# ##??????? | | ???????????????????????## #??????? #??????? | | ????????????????????????# #??????# #?#????? | | ????????????????????????# ######## ??? ????? | | ????????????????????????## #### #???# #???? | | ????????????????????????## #?# #???# ???? | | ????????????????????????# s### #????# #???? | | ????????????????????????# s## ####??# #???? | | ????????????????????????# s ## ##?# #??? | | ????????????????????????# s ### ### #??? | | ????????????????????????## #?### ## ###? | | ?????????????????????????# ##???## ## | | ?????????????????????????# #?????# | | ?????????????????????????# #?????## #### | | ????????????????????????# ##??????## #??## # | | ????????????????????????# ##????????# ##??## # | | ????????????????????????## #?????????####### | | ?????????????????????????#####??????????# | | ????????????????????????????????????##### ##### | | ???????????????????????????????????## ##??### | | ???????????????????????????????????# ### #????# | | ???????????????????????????????????# ### #????? | | ???????????????????????????????????## ## #????? | | ???????????????????????????????????## ##????? | | ???????????????????????????????????# # ## ##?????? | +----------------------------------------------------+ Best States ------------- Heat Dissipation 34 Energy Generation 10 Energy Capacity 250 Matter Stores 300 Matter Capacity 300 Sight Range 16 Terrain Scan Density 210 Evasion (%) 50 Recoil Reduction 2 Defensive Hacking 10 Item Schematics ----------------- None Robot Schematics ------------------ None Fabricated ------------ Nothing Alien Tech Used ----------------- None Achievements -------------- None Challenges ------------ None Game ------ Seed MicroDeuteriumLeg Manual? 0 Play Time 00:24:28 Cumulative 5.6 hours Start 2024.05.09 @ 23:34:51 End 2024.05.09 @ 23:59:57 Sessions 1 Manual Loads 0 Difficulty Rogue Special Mode None Game No. 6 Rogue 6 Adventurer 0 Explorer 0 Win Type - Total 0 Types 0/0/0/0/0/0/0/0/0 Lore% 2 Gallery% 14 Achievement% 13 Wizard Run 0 Options --------- Layout 1 ASCII 0 Keyboard 0 Movement Arrows Keybinds 0 Fullscreen 1 Font 16/SmallcapsGlow Map View 55x38 Zoom Use 42% Tactical HUD 0 Map Filters NONE Filters NONE Steam 0 RUN: a458b97c-8df7-46e3-b9de-60503e5b9f7d